bitfinex/quotes_ETHUSD_20251124
["timestamp","ask_amount","ask_price","bid_price","bid_amount"]
[1763959232199,0.90699264,2830.0,2829.8,0.4972]
[1763959232537,0.002,2830.4,2830.3,0.6598]
[1763959232697,0.23,2830.4,2830.3,0.6598]
[1763959232902,0.23,2830.4,2830.3,1.157]
[1763959233122,0.002,2830.4,2830.3,1.157]
[1763959233302,0.23,2830.4,2830.3,1.157]
[1763959234025,0.23,2830.4,2829.7,0.001]
[1763959234026,0.3813,2830.4,2829.7,0.001]
[1763959234435,0.23,2830.4,2829.8,0.4972]
[1763959235054,0.23,2830.4,2829.3,0.001]
[1763959235055,21.261688,2829.7,2829.3,0.001]
[1763959235339,29.10015504,2829.1,2829.0,0.001]
[1763959235548,4.56946496,2829.1,2829.0,0.001]
[1763959235842,0.228,2829.2,2829.0,1.158]
[1763959236044,0.228,2829.1,2829.0,1.158]
[1763959236249,0.228,2829.1,2829.0,0.6889]
[1763959236423,0.228,2829.1,2829.0,1.158]
[1763959237949,0.323506,2829.7,2829.0,1.158]
[1763959238245,0.228,2829.6,2829.1,0.4592]
[1763959238461,0.228,2829.6,2829.1,0.5592]
[1763959238660,0.228,2829.6,2829.5,0.4853]
[1763959239064,0.002,2830.0,2829.5,0.9445]
[1763959239227,0.228,2829.6,2829.5,0.9445]
[1763959239726,0.002,2830.0,2829.5,0.9445]
[1763959240073,0.90699264,2829.8,2829.6,0.4592]
[1763959240241,0.228,2829.7,2829.6,0.4592]
[1763959240758,0.228,2829.7,2829.6,0.9445]
[1763959241835,0.228,2829.7,2829.6,0.4853]
[1763959242072,0.228,2829.7,2829.3,0.4592]
[1763959242444,0.228,2829.7,2829.6,0.4853]
[1763959243125,0.228,2829.7,2829.3,0.4592]
[1763959243329,0.228,2829.7,2829.6,0.4853]
[1763959243645,0.228,2829.7,2829.3,0.4592]
[1763959245164,0.43045041,2829.9,2829.3,0.4592]
[1763959245165,0.32355041,2829.9,2829.6,0.4518]
[1763959245365,0.228,2829.8,2829.6,0.4518]
[1763959245537,0.55155041,2829.8,2829.6,0.4518]
[1763959247562,0.55155041,2829.8,2829.3,0.4592]
[1763959248153,0.228,2829.7,2829.3,0.4592]
[1763959253072,0.3961,2829.4,2829.0,0.1917]
[1763959253391,0.228,2829.3,2829.0,0.1917]
[1763959253897,0.228,2829.3,2829.0,0.6714]
[1763959255592,0.32382999,2829.8,2829.2,0.4518]
[1763959255593,3.31689264,2829.7,2829.2,0.4518]
[1763959255763,0.55182999,2829.6,2829.2,0.4518]
[1763959255961,0.55182999,2829.6,2829.2,0.9315]
[1763959256497,0.32382999,2829.6,2829.2,0.4518]
[1763959256698,0.228,2829.5,2829.2,0.4518]
[1763959256902,0.228,2829.5,2829.2,0.9315]
[1763959257507,0.228,2829.5,2829.2,0.4518]
[1763959258071,0.228,2829.5,2829.2,0.9315]
[1763959259775,0.3961,2829.3,2829.0,0.001]
[1763959260871,0.0015,2829.1,2829.0,0.001]
[1763959261077,0.2295,2829.1,2829.0,0.001]
[1763959262113,0.6256,2829.1,2829.0,0.001]
[1763959262630,0.32376992,2829.1,2829.0,0.9325]
[1763959262923,0.7942,2830.3,2829.2,0.1]
[1763959262924,0.002,2830.3,2829.2,0.1]
[1763959263071,0.228,2829.9,2829.7,0.4518]
[1763959263478,0.228,2829.9,2829.8,0.4518]
[1763959263713,0.228,2829.9,2829.8,0.9315]
[1763959264095,0.228,2829.9,2829.3,0.4797]
[1763959265589,0.3237598,2830.2,2829.8,0.4518]
[1763959265921,0.002,2830.3,2829.4,0.4797]
[1763959265922,0.228,2829.9,2829.4,0.4797]
[1763959266623,0.228,2829.9,2829.8,0.4724]
[1763959267024,0.228,2829.9,2829.8,0.9388]
[1763959267984,0.002,2830.3,2829.8,0.9388]
[1763959268184,0.002,2830.3,2829.9,0.4724]
[1763959268417,0.23,2830.0,2829.9,0.9388]
[1763959269440,0.23,2830.0,2829.9,0.4724]
[1763959270036,0.002,2830.0,2829.9,0.4724]
[1763959270240,0.23,2830.0,2829.9,0.4724]
[1763959271155,0.23,2830.0,2829.3,0.001]
[1763959271156,1.68299264,2830.0,2829.3,0.001]
[1763959271355,2.15073934,2830.0,2829.3,0.4674]
[1763959273755,0.3823,2830.0,2829.3,0.4674]
[1763959275658,0.1069,2829.9,2829.3,0.4674]
[1763959276279,0.1523,2829.4,2829.3,0.001]
[1763959276493,0.002,2830.0,2829.3,0.001]
[1763959276638,0.228,2829.9,2829.8,0.4724]
[1763959276843,0.55165131,2829.9,2829.4,0.4664]
[1763959277043,0.002,2830.0,2829.8,0.4724]
[1763959277256,0.228,2829.9,2829.8,0.4724]
[1763959277476,0.002,2830.0,2829.9,0.4724]
[1763959277675,0.23,2830.0,2829.9,0.4724]
[1763959277866,0.23,2830.0,2829.9,0.9388]
[1763959278780,0.3823,2830.0,2829.3,0.4674]
[1763959280289,0.1069,2829.9,2829.3,0.4674]
[1763959282648,1.01389264,2829.9,2829.3,0.4674]
[1763959282978,1.16418501,2829.8,2829.3,0.001]
[1763959283274,0.84065045,2829.8,2829.3,0.001]
[1763959283489,0.3961,2829.7,2829.3,0.001]
[1763959283694,0.1523,2829.4,2829.3,0.001]
[1763959283859,0.3803,2829.4,2829.3,0.001]
[1763959284791,0.228,2829.4,2829.3,0.001]
[1763959286200,7.35453164,2829.4,2829.3,0.001]
[1763959286396,0.90699264,2829.3,2829.0,0.001]
[1763959286601,22.39435391,2829.1,2829.0,0.001]
[1763959286808,22.39435391,2829.1,2826.6,0.001]
[1763959286809,4.44206051,2828.8,2827.4,0.4664]
[1763959286975,0.90699264,2828.0,2827.4,0.4664]
[1763959287297,0.3268,2827.9,2827.1,0.4664]
[1763959287794,1.13408699,2827.9,2827.1,0.4664]
[1763959288474,1.13408699,2827.9,2827.3,0.4674]
[1763959288872,0.80728699,2827.9,2827.3,0.4674]
[1763959289192,0.228,2827.8,2827.3,0.4674]
[1763959290463,7.23517727,2827.7,2827.3,0.001]
[1763959290702,6.83907727,2827.7,2827.3,0.4674]
[1763959291025,0.0988,2828.2,2827.6,0.4724]
[1763959291319,0.90699264,2827.9,2827.6,0.4724]
[1763959291485,0.50570366,2827.9,2827.6,0.4724]
[1763959291682,0.90699264,2827.9,2827.6,0.4724]
[1763959291889,0.90699264,2827.8,2827.0,0.001]
[1763959292087,0.228,2827.7,2827.0,0.001]
[1763959292584,0.0988,2828.2,2827.0,0.001]
[1763959292585,1.05479264,2828.4,2827.6,0.4724]
[1763959292786,2.099629,2828.2,2827.8,0.4724]
[1763959292987,0.2327629,2828.1,2827.8,0.4724]
[1763959293226,0.228,2828.0,2827.8,0.4724]
[1763959293388,0.228,2828.0,2827.6,0.1]
[1763959293584,3.53471023,2829.1,2827.0,0.001]
[1763959293585,0.55390291,2828.8,2827.9,0.4724]
[1763959293825,0.3758,2828.7,2828.0,0.4664]
[1763959294244,0.90699264,2828.5,2828.1,0.1894]
[1763959294385,0.45469556,2828.4,2828.0,0.4664]
[1763959294585,0.228,2828.3,2828.0,0.4664]
[1763959294784,0.228,2828.3,2827.7,0.1]
[1763959294985,0.90699264,2828.5,2827.8,0.4664]
[1763959295199,0.228,2828.4,2827.8,0.4664]
[1763959295821,1.5793099,2828.4,2827.4,0.4664]
[1763959296126,0.90699264,2828.2,2827.4,0.4664]
[1763959296820,0.90699264,2828.2,2827.5,0.1]
[1763959297121,0.90699264,2828.5,2828.1,0.6422]
[1763959297321,0.228,2828.4,2828.1,0.1921]
[1763959297894,0.228,2828.4,2828.1,0.6889]
[1763959298127,0.228,2828.3,2828.1,0.6889]
[1763959298644,0.228,2828.3,2828.2,0.4501]
[1763959300449,0.1478,2828.7,2827.9,0.1921]
[1763959300747,0.228,2828.6,2827.9,0.1921]
[1763959300946,0.228,2828.6,2828.0,0.4968]
[1763959301542,3.869768,2828.8,2828.5,0.4501]
[1763959301854,2.084517,2829.1,2828.7,0.4501]
[1763959302151,0.228,2829.0,2828.8,0.4501]
[1763959302327,0.228,2829.0,2828.3,0.1]
[1763959302531,6.907714,2828.8,2827.9,0.1921]
[1763959302754,0.83686096,2828.7,2827.9,0.1921]
[1763959302914,0.4451,2828.7,2827.9,0.1921]
[1763959303113,0.55390291,2828.7,2827.9,0.1921]
[1763959303319,0.79258773,2829.2,2828.6,0.4501]
[1763959303612,0.228,2829.1,2828.6,0.4501]
[1763959304030,4.090517,2829.1,2828.6,0.4501]
[1763959304256,0.228,2829.0,2828.6,0.4501]
[1763959304461,4.14169731,2829.9,2828.9,0.4686]
[1763959304462,0.4451,2829.7,2828.9,0.4686]
[1763959304769,0.002,2829.0,2828.9,0.4686]
[1763959304924,0.23,2829.0,2828.9,0.4686]
[1763959305248,0.23,2829.0,2828.9,0.9362]
[1763959305812,0.002,2829.0,2828.9,1.0362]
[1763959306047,0.23,2829.0,2828.9,1.0362]
[1763959306247,0.002,2829.0,2828.9,1.0362]
[1763959306446,0.23,2829.0,2828.9,1.0362]
[1763959306857,0.23,2829.0,2828.4,0.4676]
[1763959308994,0.23,2829.0,2828.1,0.5676]
[1763959309555,6.537105,2828.8,2828.1,0.5676]
[1763959309762,0.6635905,2828.7,2828.1,0.5676]
[1763959309961,0.90699264,2828.7,2828.1,0.5676]
[1763959310163,6.890403,2828.8,2828.1,0.5676]
[1763959310465,0.90699264,2828.7,2828.1,0.5676]
[1763959310992,6.890403,2828.8,2828.1,0.4676]
[1763959311292,1.00579264,2828.9,2827.9,0.6597]
[1763959311293,2.957574,2828.6,2827.9,0.6597]
[1763959311585,3.314713,2828.4,2827.9,0.6597]
[1763959311777,2.855703,2828.4,2827.9,0.6597]
[1763959311978,0.228,2828.5,2827.9,0.6597]
[1763959312160,2.318938,2828.4,2827.9,0.6597]
[1763959312361,0.2546938,2828.3,2827.9,0.6597]
[1763959312561,0.90699264,2828.3,2827.9,0.6597]
[1763959312762,0.228,2828.5,2827.9,0.6597]
[1763959312964,2.976644,2828.4,2827.9,0.6597]
[1763959313458,2.976644,2828.4,2827.9,0.1921]
[1763959313459,0.90699264,2828.3,2827.9,0.1921]
[1763959314082,0.90699264,2828.3,2827.5,0.4676]
[1763959314277,1.58009264,2828.5,2827.5,0.4676]
[1763959314278,0.90699264,2828.5,2828.2,0.6621]
[1763959314477,0.6597,2828.7,2828.2,0.6621]
[1763959314478,0.90699264,2828.7,2828.4,0.4686]
[1763959314774,7.74606991,2829.4,2828.0,0.6611]
[1763959314775,0.228,2828.6,2828.0,0.6611]
[1763959315899,0.6641,2829.0,2828.5,0.4686]
[1763959316098,0.55068572,2828.9,2828.5,0.4686]
[1763959316490,0.55068572,2828.9,2828.2,0.4676]
[1763959320011,0.228,2828.8,2828.2,0.5676]
[1763959320211,0.228,2828.7,2828.3,0.1]
[1763959320505,0.228,2828.7,2828.3,0.4676]
[1763959320810,0.002,2829.0,2828.6,0.4686]
[1763959320981,0.228,2828.9,2828.7,0.4676]
[1763959321206,0.228,2828.9,2828.6,0.4686]
[1763959321430,0.228,2828.9,2828.6,0.9362]
[1763959321934,0.228,2828.9,2828.6,0.4686]
[1763959322350,0.3268,2828.9,2828.6,0.4686]
[1763959322638,0.3288,2828.9,2828.6,0.4686]
[1763959322852,0.3288,2828.9,2828.0,0.1935]
[1763959322853,0.002,2828.9,2828.8,0.4686]
[1763959323147,0.002,2828.9,2828.8,0.5686]
[1763959323292,0.002,2828.9,2828.8,1.0362]
[1763959333061,0.002,2828.9,2828.8,0.9362]
[1763959333229,0.002,2828.9,2828.8,1.0362]
[1763959337305,0.002,2828.9,2828.8,0.9362]
[1763959337807,0.002,2828.9,2828.8,1.0362]
[1763959338777,0.002,2828.9,2828.8,1.23051926]
[1763959339407,0.002,2828.9,2828.8,1.13051926]
[1763959339588,0.002,2828.9,2828.8,1.0362]
[1763959343090,0.002,2828.9,2828.8,1.07155067]
[1763959343611,0.002,2828.9,2828.8,1.0362]
[1763959343830,0.002,2828.9,2828.8,0.9362]
[1763959344286,0.002,2828.9,2828.8,1.0362]
[1763959349588,0.002,2828.9,2828.8,0.5686]
[1763959349800,0.002,2828.9,2828.8,0.4686]
[1763959350022,0.002,2828.9,2828.8,1.057]
[1763959350623,0.002,2828.9,2828.7,0.1]
[1763959350993,0.002,2828.9,2828.8,0.5887]
[1763959351190,0.002,2828.9,2828.8,0.1]
[1763959351390,0.1058,2828.9,2828.8,0.1]
[1763959351928,0.6464,2828.9,2828.0,0.1935]
[1763959352099,0.6464,2828.9,2828.3,0.1]
[1763959352100,0.5392,2828.9,2828.3,0.1]
[1763959352302,0.002,2828.9,2828.8,0.5887]
[1763959352507,0.002,2828.9,2828.8,1.0771]
[1763959353908,0.002,2828.9,2828.8,0.5887]
[1763959354515,0.002,2828.9,2828.8,1.0771]
[1763959357835,0.002,2828.9,2828.8,0.5887]
[1763959358135,0.002,2828.9,2828.8,0.1]
[1763959358331,0.002,2828.9,2828.8,0.5931]
[1763959358749,0.002,2828.9,2828.8,1.0853]
[1763959358953,0.002,2828.9,2828.5,0.4922]
[1763959359152,0.1058,2828.9,2828.7,0.1]
[1763959359651,0.002,2828.9,2828.7,0.1]
[1763959360344,0.002,2828.9,2828.8,0.1]
[1763959361448,0.002,2828.9,2828.8,0.5931]
[1763959361830,0.002,2828.9,2828.8,0.1]
[1763959362852,0.002,2828.9,2828.8,0.5931]
[1763959363258,0.002,2828.9,2828.8,1.0853]
[1763959368764,0.002,2828.9,2828.8,0.79142926]
[1763959368969,0.002,2828.9,2828.8,1.0864]
[1763959372671,0.002,2828.9,2828.8,0.5942]
[1763959372839,0.1058,2828.9,2828.8,0.1]
[1763959373467,0.002,2828.9,2828.8,0.5942]
[1763959373667,0.1058,2828.9,2828.3,0.227]
[1763959373876,0.2046,2828.9,2828.8,0.1]
[1763959374245,0.6463,2828.9,2828.8,0.1]
[1763959374851,0.6463,2828.9,2828.3,0.227]
[1763959375055,0.6463,2828.9,2828.7,0.1]
[1763959375256,0.002,2828.9,2828.7,0.1]
[1763959375464,0.1038,2828.8,2828.7,0.1]
[1763959375673,0.002,2828.9,2828.7,0.1]
[1763959375845,0.002,2828.9,2828.8,0.1]
[1763959376344,0.1092,2828.9,2828.8,0.1]
[1763959377141,0.002,2828.9,2828.8,0.5942]
[1763959377348,0.002,2828.9,2828.8,1.0569]
[1763959377796,0.002,2828.9,2828.8,0.1]
[1763959378778,0.002,2828.9,2828.8,0.5942]
[1763959380066,0.002,2828.9,2828.8,1.0569]
[1763959380449,0.4471,2828.9,2828.8,0.1]
[1763959380862,0.5459,2828.9,2828.7,0.1]
[1763959381281,0.002,2828.9,2828.4,0.4627]
[1763959381583,0.002,2828.9,2828.8,0.5942]
[1763959381981,0.4471,2828.9,2828.8,0.1]
[1763959383985,0.002,2828.9,2828.8,1.0569]
[1763959384866,0.002,2828.9,2828.8,1.76975913]
[1763959385182,0.002,2828.9,2828.8,1.8051098]
[1763959385382,0.002,2828.9,2828.8,1.76975913]
[1763959385887,0.002,2828.9,2828.8,1.99675913]
[1763959387282,0.002,2828.9,2828.8,1.2839]
[1763959389296,0.002,2828.9,2828.8,0.5942]
[1763959389473,0.1058,2828.9,2828.8,0.1]
[1763959389986,0.002,2828.9,2828.8,0.4731]
[1763959390187,0.002,2828.9,2828.8,0.5731]
[1763959390664,0.002,2828.9,2828.8,0.1]
[1763959390665,0.1058,2828.9,2828.8,0.1]
[1763959390866,0.2046,2828.9,2828.8,0.1]
[1763959392202,0.6463,2828.9,2828.8,0.1]
[1763959392526,0.002,2828.9,2828.8,1.0565]
[1763959393300,0.002,2828.9,2828.8,0.5731]
[1763959393499,0.002,2828.9,2828.8,0.1]
[1763959393798,0.002,2828.9,2828.8,0.5731]
[1763959394106,0.002,2828.9,2828.8,0.1]
[1763959394799,0.1058,2828.9,2828.8,0.1]
[1763959394972,0.2046,2828.9,2828.8,0.1]
[1763959396688,0.002,2828.9,2828.8,0.5731]
[1763959399202,0.4471,2828.9,2828.8,0.1]
[1763959400101,0.5459,2828.9,2828.4,0.227]
[1763959400313,0.5459,2828.9,2828.8,0.1]
[1763959401709,0.002,2828.9,2828.8,0.5731]
[1763959402281,0.1058,2828.9,2828.4,0.227]
[1763959402678,0.002,2828.9,2828.8,0.1]
[1763959402878,0.002,2828.9,2828.8,0.5731]
[1763959405013,0.002,2828.9,2828.8,0.1]
[1763959405396,0.1058,2828.9,2828.8,0.1]
[1763959405628,0.002,2828.9,2828.8,0.1]
[1763959406233,0.1058,2828.9,2828.8,0.1]
[1763959406931,0.002,2828.9,2828.8,0.1]
[1763959407635,0.002,2828.9,2828.8,1.0565]
[1763959408031,0.002,2828.9,2828.8,1.25284926]
[1763959410241,0.002,2828.9,2828.8,0.60845067]
[1763959410538,0.1058,2828.9,2828.8,0.1]
[1763959411123,0.2046,2828.9,2828.8,0.1]
[1763959411310,5.65607832,2828.9,2828.0,0.1935]
[1763959411644,0.2046,2828.9,2828.7,0.1]
[1763959411841,0.0044,2828.8,2828.7,0.1]
[1763959413125,0.002,2828.9,2828.7,0.4731]
[1763959413314,0.002,2828.9,2828.8,0.60845067]
[1763959413520,0.002,2828.9,2828.8,0.5731]
[1763959413720,0.002,2828.9,2828.8,1.0565]
[1763959416350,0.002,2828.9,2828.8,1.6984785]
[1763959416511,0.002,2828.9,2828.8,1.66312783]
[1763959416715,0.002,2828.9,2828.8,1.6984785]
[1763959417421,0.002,2828.9,2828.8,6.70825682]
[1763959417748,0.002,2828.9,2828.8,6.06627832]
[1763959417932,0.002,2829.6,2829.1,0.6526]
[1763959418132,0.002,2829.6,2829.4,6.47967096]
[1763959418334,0.002,2829.6,2829.4,7.1892158]
[1763959418526,0.002,2829.6,2829.4,7.61397262]
[1763959419566,0.002,2829.6,2829.4,11.14829085]
[1763959419942,0.002,2829.6,2829.4,7.61397262]
[1763959420462,0.002,2829.6,2829.4,2.8311943]
[1763959421826,0.002,2829.6,2829.4,2.86653748]
[1763959422028,0.002,2829.6,2829.4,6.40085571]
[1763959422365,0.002,2829.6,2829.4,6.36551253]
[1763959422764,0.002,2829.6,2829.4,2.8311943]
[1763959426420,0.002,2829.6,2829.4,6.36551253]
[1763959426691,0.002,2829.8,2829.7,6.01677096]
[1763959426905,0.002,2829.8,2829.7,6.54171039]
[1763959427086,0.002,2829.8,2829.7,6.99471039]
[1763959428262,0.002,2829.8,2829.7,7.13631107]
[1763959428463,0.002,2829.8,2829.7,7.10097164]
[1763959428703,0.002,2829.8,2829.7,13.8136976]
[1763959428885,0.002,2829.8,2829.7,13.77835817]
[1763959430589,0.002,2829.8,2829.7,13.63675749]
[1763959433914,0.002,2830.1,2829.9,3.63369377]
[1763959434113,0.002,2830.1,2829.9,7.10827411]
[1763959437726,0.002,2830.4,2830.2,0.1]
[1763959437926,0.002,2830.4,2830.2,16.86846926]
[1763959438228,0.002,2830.4,2830.3,4.77001064]
[1763959438523,0.002,2830.4,2830.3,6.61987105]
[1763959438911,0.002,2830.4,2830.3,9.91358341]
[1763959439110,0.002,2830.9,2830.4,23.62464464]
[1763959439324,0.002,2830.9,2830.8,20.55755807]
[1763959439488,0.4531,2832.5,2830.9,0.90699264]
[1763959439831,0.4531,2832.4,2830.9,4.14397216]
[1763959440028,0.4531,2832.3,2830.9,4.14397216]
[1763959440328,0.0988,2832.4,2831.1,1.00699264]
[1763959440531,0.0988,2832.6,2831.1,5.44251459]
[1763959440731,0.1149,2833.0,2832.3,0.4896]
[1763959440916,0.1149,2833.0,2832.9,0.1]
[1763959441297,0.2108,2833.0,2832.9,0.1]
[1763959442214,0.18459474,2834.5,2832.9,0.1]
[1763959442215,0.4531,2833.7,2832.9,1.84959264]
[1763959442418,0.18459474,2834.5,2833.9,0.1]
[1763959442419,0.5448,2834.0,2833.9,0.1]
[1763959442792,0.6407,2834.0,2833.9,0.1]
[1763959442992,0.5448,2835.8,2833.9,7.54399343]
[1763959443232,0.1149,2836.0,2834.9,0.1]
[1763959443233,0.5519,2835.1,2834.9,0.1]
[1763959443435,0.5519,2835.1,2834.7,0.1]
[1763959443436,0.6968,2835.0,2834.7,0.1]
[1763959443602,0.6968,2835.0,2834.8,0.1]
[1763959443603,0.4531,2834.9,2834.8,0.1]
[1763959443929,0.0959,2834.9,2834.8,0.1]
[1763959444115,0.5455,2834.9,2834.8,0.1]
[1763959444316,0.4531,2834.9,2834.7,0.1]
[1763959444627,0.4531,2834.9,2834.8,0.1]
[1763959444628,0.549,2834.9,2834.8,0.1]
[1763959444928,0.1478,2835.0,2834.9,0.1]
[1763959445433,0.2437,2835.0,2834.6,0.1]
[1763959445636,0.4496,2834.6,2834.5,0.1]
[1763959445994,0.549,2834.6,2834.5,0.1]
[1763959447035,0.4496,2834.6,2834.5,0.1]
[1763959447448,0.2472,2835.0,2834.5,0.1]
[1763959447640,0.1478,2835.0,2834.9,0.1]
[1763959447931,0.1478,2835.0,2834.5,0.4743]
[1763959447932,0.0959,2834.6,2834.5,0.326]
[1763959448438,0.4531,2834.9,2834.8,0.1]
[1763959448608,0.0959,2834.6,2834.4,0.1]
[1763959448809,0.4531,2834.9,2834.6,0.1]
[1763959449045,0.4531,2834.8,2834.6,0.1]
[1763959449269,0.0959,2834.7,2834.6,0.1]
[1763959449471,0.0959,2834.7,2833.6,0.90699264]
[1763959449675,0.0959,2834.7,2833.2,3.52954962]
[1763959449676,0.4531,2834.6,2834.2,0.1]
[1763959450040,0.0959,2834.3,2834.2,0.1]
[1763959450233,0.0959,2834.3,2834.0,0.1]
[1763959450472,0.4496,2834.2,2834.0,0.1]
[1763959450847,0.0994,2834.1,2834.0,0.1]
[1763959451869,0.5455,2834.1,2834.0,0.1]
[1763959452280,0.5455,2834.1,2833.5,0.1]
[1763959452482,0.4461,2834.1,2833.7,0.1]
[1763959452921,0.4461,2834.1,2833.4,0.1]
[1763959452922,0.1937,2833.8,2833.4,0.1]
[1763959453074,0.4461,2834.1,2833.4,0.1]
[1763959453274,0.1877,2833.5,2833.4,0.1]
[1763959453477,0.1877,2833.5,2833.1,0.1]
[1763959453674,0.4531,2833.4,2833.1,0.1]
[1763959453922,0.1027,2833.2,2833.1,0.1]
[1763959454534,0.5523,2833.2,2833.1,0.1]
[1763959455069,0.0848,2833.5,2832.7,0.035302]
[1763959455404,0.0917,2833.8,2833.4,0.1]
[1763959455606,0.0917,2833.8,2833.7,0.1]
[1763959455607,0.5448,2833.8,2833.7,0.1]
[1763959455788,0.0917,2833.8,2833.7,0.1]
[1763959455993,0.1876,2833.8,2833.1,0.1943]
[1763959456299,0.1876,2833.8,2833.7,0.1]
[1763959456550,10.17,2834.7,2833.2,0.03529577]
[1763959456706,10.17,2834.7,2832.4,0.1943]
[1763959456707,0.0917,2833.7,2833.6,0.1]
[1763959457054,0.4531,2834.6,2834.0,0.1]
[1763959457353,0.4531,2834.5,2834.0,0.1]
[1763959457520,0.0959,2834.1,2834.0,0.1]
[1763959459215,0.0959,2834.1,2833.8,0.1]
[1763959459216,0.5455,2834.1,2833.8,0.1]
[1763959459651,0.1911,2833.9,2833.8,0.1]
[1763959460553,0.1911,2833.9,2833.2,0.4658]
[1763959460554,0.6372,2833.9,2833.7,0.1]
[1763959460756,0.5378,2833.9,2833.7,0.1]
[1763959460936,0.5378,2833.9,2833.4,0.1]
[1763959460937,0.5455,2833.8,2833.4,0.1]
[1763959461122,0.4426,2833.8,2833.4,0.1]
[1763959461318,0.1063,2833.5,2833.4,0.1]
[1763959461872,0.5456,2833.5,2833.4,0.1]
[1763959462870,0.5456,2833.5,2833.3,0.1]
[1763959463232,0.1096,2833.4,2833.3,0.1]
[1763959463636,0.5456,2833.4,2833.3,0.1]
[1763959464027,0.1096,2833.4,2833.3,0.1]
[1763959464228,0.0917,2833.9,2833.6,0.1]
[1763959464558,0.5448,2833.9,2833.6,0.1]
[1763959464756,0.0959,2833.7,2833.6,0.1]
[1763959465529,0.5455,2833.7,2833.6,0.1]
[1763959467871,0.0917,2833.9,2833.6,0.1]
[1763959468072,0.0917,2833.9,2833.8,0.1]
[1763959468473,0.1876,2833.9,2833.8,0.1]
[1763959468877,0.6372,2833.9,2833.2,0.1]
[1763959469373,0.77620641,2833.8,2833.2,0.1]
[1763959469570,0.32310641,2833.7,2833.5,0.1]
[1763959469773,0.4531,2833.8,2833.5,0.1]
[1763959469975,0.0917,2833.9,2833.5,0.1]
[1763959470272,0.32315052,2833.8,2833.7,0.1]
[1763959470669,0.41905052,2833.8,2833.7,0.1]
[1763959470978,0.41907337,2833.8,2833.7,0.1]
[1763959473049,0.0959,2833.8,2833.7,0.1]
[1763959473878,0.0959,2833.8,2832.8,3.53006463]
[1763959473879,0.0959,2833.8,2832.8,0.4658]
[1763959474179,0.0959,2833.8,2833.2,0.1]
[1763959474180,0.5455,2833.8,2833.2,0.1]
[1763959474590,0.4496,2833.8,2833.2,0.1]
[1763959475093,0.4496,2833.8,2833.5,0.1]
[1763959475703,0.0994,2833.6,2833.5,0.1]
[1763959475910,0.42297685,2833.6,2832.2,1.1829697]
[1763959476053,0.76967685,2833.5,2832.9,0.1]
[1763959476254,0.32361546,2833.4,2832.9,0.1]
[1763959476466,0.4531,2833.4,2832.9,0.1]
[1763959476690,0.0959,2833.0,2832.4,0.1943]
[1763959476898,0.0959,2833.0,2832.7,0.1]
[1763959477109,0.1147,2832.9,2832.7,0.1]
[1763959477266,0.0011,2832.8,2832.7,0.1]
[1763959477590,0.4542,2832.8,2832.7,0.1]
[1763959477768,0.0011,2832.8,2832.7,0.1]
[1763959479801,0.4542,2832.8,2832.6,0.1]
[1763959480155,0.0949,2832.7,2832.6,0.1]
[1763959480573,0.5456,2832.7,2832.6,0.1]
[1763959481063,0.0949,2832.7,2832.6,0.1]
[1763959485394,0.1147,2832.9,2832.7,0.1]
[1763959485730,0.1147,2832.9,2832.8,0.1]
[1763959486096,0.2108,2832.9,2832.8,0.1]
[1763959486561,0.4531,2833.5,2833.0,0.1]
[1763959486694,0.4531,2833.6,2833.2,0.1]
[1763959486894,0.32360856,2833.5,2833.2,0.1]
[1763959487094,0.0963,2833.3,2833.2,0.1]
[1763959492043,0.0963,2833.3,2832.7,0.4779]
[1763959492222,0.5459,2833.3,2833.0,0.1]
[1763959492414,0.0963,2833.3,2832.7,0.4779]
[1763959492610,0.0963,2833.3,2833.1,0.1]
[1763959492811,0.0963,2833.2,2833.1,0.1]
[1763959494539,0.0963,2833.2,2832.7,0.4779]
[1763959494741,0.0963,2833.2,2833.0,0.1]
[1763959495338,0.4496,2833.1,2832.8,0.1]
[1763959495559,0.0998,2833.2,2832.5,0.1]
[1763959495842,0.0937,2833.9,2832.1,0.6595]
[1763959495843,0.0963,2832.6,2832.1,0.6595]
[1763959496146,10.17,2833.5,2832.5,0.1]
[1763959496439,1.017,2833.4,2832.8,0.1]
[1763959496742,0.4531,2833.8,2832.8,0.1]
[1763959496943,0.2106,2832.9,2832.8,0.1]
[1763959497115,0.2106,2832.9,2832.7,0.1]
[1763959497316,0.0963,2832.9,2832.8,0.1]
[1763959498026,0.5455,2832.9,2832.1,0.6595]
[1763959498237,0.0963,2832.9,2832.6,0.1]
[1763959498437,0.0963,2832.9,2832.7,0.1]
[1763959499810,0.1149,2833.0,2832.7,0.1]
[1763959500011,0.1149,2833.0,2832.8,0.1]
[1763959500343,0.002,2833.3,2833.0,0.1]